[Event "2026 European Womens Championship"]
[Site "Batumi, GE"]
[Date "2026.06.02"]
[Round "8"]
[White "Chanturia, Lika"]
[Black "Gharibyan, Mane"]
[Result "0-1"]
[Board "77"]
[TimeControl "5400+30"]
[WhiteFideId "13618857"]
[BlackFideId "13306430"]
[WhiteElo "1649"]
[BlackElo "1776"]
[WhiteClock "0:17:58"]
[BlackClock "0:05:56"]
[Variant "Standard"]

1. e4 {[%clk 1:30:59]}  c5 {[%clk 1:28:13]} 2. Nf3 {[%clk 1:31:22]}  d6 {[%clk 1:28:34]} 3. d4 {[%clk 1:31:46]}  cxd4 {[%clk 1:28:55]}
4. Nxd4 {[%clk 1:32:07]}  Nf6 {[%clk 1:29:18]} 5. Nc3 {[%clk 1:32:32]}  a6 {[%clk 1:29:46]} 6. h3 {[%clk 1:32:54]}  e5 {[%clk 1:28:31]}
7. Nde2 {[%clk 1:33:11]}  Be6 {[%clk 1:24:29]} 8. g4 {[%clk 1:29:18]}  Be7 {[%clk 1:18:45]} 9. Bg2 {[%clk 1:27:20]}  b5 {[%clk 1:12:06]}
10. Ng3 {[%clk 1:20:54]}  Nc6 {[%clk 0:51:35]} 11. Nf5 {[%clk 1:08:39]}  Bxf5 {[%clk 0:48:40]} 12. exf5 {[%clk 1:08:46]}  Rc8 {[%clk 0:48:44]}
13. Be3 {[%clk 1:06:31]}  Na5 {[%clk 0:43:26]} 14. O-O {[%clk 0:55:41]}  Nc4 {[%clk 0:41:27]} 15. Bc1 {[%clk 0:52:00]}  h6 {[%clk 0:36:53]}
16. Bb7 {[%clk 0:46:55]}  Rb8 {[%clk 0:23:46]} 17. Bxa6 {[%clk 0:36:53]}  Qa5 {[%clk 0:23:28]} 18. Bxb5+ {[%clk 0:36:12]}  Rxb5 {[%clk 0:23:46]}
19. Nxb5 {[%clk 0:36:38]}  Qxb5 {[%clk 0:24:12]} 20. b3 {[%clk 0:34:36]}  Nb6 {[%clk 0:17:11]} 21. c4 {[%clk 0:30:15]}  Qc6 {[%clk 0:15:13]}
22. Re1 {[%clk 0:28:12]}  Nh7 {[%clk 0:11:35]} 23. a4 {[%clk 0:22:53]}  Bg5 {[%clk 0:03:15]} 24. a5 {[%clk 0:18:31]}  Nd7 {[%clk 0:02:51]}
25. Ba3 {[%clk 0:15:53]}  Ke7 {[%clk 0:02:43]} 26. Qd3 {[%clk 0:15:05]}  Bf4 {[%clk 0:01:03]} 27. Rad1 {[%clk 0:10:05]}  Nc5 {[%clk 0:01:20]}
28. Bxc5 {[%clk 0:08:17]}  Qxc5 {[%clk 0:01:35]} 29. a6 {[%clk 0:06:39]}  Ra8 {[%clk 0:00:58]} 30. Qe4 {[%clk 0:06:17]}  Ng5 {[%clk 0:00:34]}
31. Qxa8 {[%clk 0:04:31]}  Nxh3+ {[%clk 0:00:47]} 32. Kh1 {[%clk 0:04:42]}  Nxf2+ {[%clk 0:01:05]} 33. Kg2 {[%clk 0:04:40]}  Nxg4 {[%clk 0:00:44]}
34. Qf3 {[%clk 0:03:14]}  Ne3+ {[%clk 0:00:47]} 35. Rxe3 {[%clk 0:03:34]}  Bxe3 {[%clk 0:01:10]} 36. b4 {[%clk 0:03:06]}  Qxc4 {[%clk 0:00:43]}
37. Qb7+ {[%clk 0:02:04]}  Kf6 {[%clk 0:00:40]} 38. Rxd6+ {[%clk 0:02:14]}  Kg5 {[%clk 0:00:43]} 39. Qf3 {[%clk 0:01:38]}  Bf4 {[%clk 0:00:38]}
40. Qd3 {[%clk 0:01:05]}  Qxb4 {[%clk 0:00:40]} 41. Rd7 {[%clk 0:25:06]}  e4 {[%clk 0:23:34]} 42. Qe2 {[%clk 0:19:41]}  e3 {[%clk 0:11:34]}
43. Rxf7 {[%clk 0:15:24]}  Qe4+ {[%clk 0:08:56]} 44. Kg1 {[%clk 0:15:42]}  Qb1+ {[%clk 0:08:58]} 45. Qf1 {[%clk 0:11:33]}  Bh2+ {[%clk 0:08:41]}
46. Kg2 {[%clk 0:11:55]}  Qa2+ {[%clk 0:08:45]} 47. Kf3 {[%clk 0:11:20]}  Qxf7 {[%clk 0:06:16]} 48. Qg2+ {[%clk 0:11:42]}  Kxf5 {[%clk 0:05:57]}
49. Qxh2 {[%clk 0:11:58]}  Qd5+ {[%clk 0:04:07]} 50. Kxe3 {[%clk 0:12:04]}  Qe6+ {[%clk 0:04:21]} 51. Kf3 {[%clk 0:12:16]}  Qb3+ {[%clk 0:03:17]}
52. Kf2 {[%clk 0:12:21]}  Qa2+ {[%clk 0:03:43]} 53. Kg3 {[%clk 0:12:39]}  Qxa6 {[%clk 0:03:53]} 54. Qc2+ {[%clk 0:12:55]}  Kf6 {[%clk 0:03:07]}
55. Qc3+ {[%clk 0:13:11]}  Kf7 {[%clk 0:03:32]} 56. Qf3+ {[%clk 0:13:23]}  Qf6 {[%clk 0:03:47]} 57. Qb7+ {[%clk 0:13:46]}  Kg6 {[%clk 0:03:55]}
58. Qe4+ {[%clk 0:14:01]}  Qf5 {[%clk 0:04:08]} 59. Qc6+ {[%clk 0:14:24]}  Kh7 {[%clk 0:03:56]} 60. Qb7 {[%clk 0:14:28]}  h5 {[%clk 0:03:56]}
61. Qe7 {[%clk 0:14:39]}  Qg4+ {[%clk 0:03:29]} 62. Kf2 {[%clk 0:14:53]}  h4 {[%clk 0:03:38]} 63. Qb7 {[%clk 0:14:51]}  h3 {[%clk 0:03:29]}
64. Qb1+ {[%clk 0:15:16]}  Qg6 {[%clk 0:03:40]} 65. Qxg6+ {[%clk 0:14:22]}  Kxg6 {[%clk 0:04:06]} 66. Kg3 {[%clk 0:14:48]}  Kg5 {[%clk 0:04:26]}
67. Kxh3 {[%clk 0:15:15]}  Kf4 {[%clk 0:04:52]} 68. Kg2 {[%clk 0:15:40]}  Kg4 {[%clk 0:05:14]} 69. Kf2 {[%clk 0:15:59]}  Kh3 {[%clk 0:05:38]}
70. Kg1 {[%clk 0:16:19]}  g5 {[%clk 0:04:20]} 71. Kh1 {[%clk 0:16:42]}  g4 {[%clk 0:04:39]} 72. Kg1 {[%clk 0:17:09]}  Kg3 {[%clk 0:05:04]}
73. Kh1 {[%clk 0:17:32]}  Kf2 {[%clk 0:05:30]} 74. Kh2 {[%clk 0:17:58]}  g3 {[%clk 0:05:56]} 0-1

[Event "2026 European Womens Championship"]
[Site "Batumi, GE"]
[Date "2026.06.02"]
[Round "8"]
[White "Vakhania, Aleksandra"]
[Black "Ediberidze, Alexandra"]
[Result "1-0"]
[Board "78"]
[TimeControl "5400+30"]
[WhiteFideId "13602560"]
[BlackFideId "13636685"]
[WhiteElo "2079"]
[BlackElo "1638"]
[WhiteTitle "WIM"]
[WhiteClock "0:08:05"]
[BlackClock "1:03:33"]
[Variant "Standard"]

1. e4 {[%clk 1:30:56]}  c6 {[%clk 1:30:55]} 2. d3 {[%clk 1:31:03]}  d5 {[%clk 1:31:06]} 3. Nd2 {[%clk 1:31:28]}  dxe4 {[%clk 1:30:59]}
4. dxe4 {[%clk 1:31:46]}  e5 {[%clk 1:29:04]} 5. Ngf3 {[%clk 1:32:11]}  Bg4 {[%clk 1:29:10]} 6. Bc4 {[%clk 1:31:39]}  Nf6 {[%clk 1:28:23]}
7. Bxf7+ {[%clk 1:31:05]}  Ke7 {[%clk 1:27:03]} 8. Bb3 {[%clk 1:31:12]}  Na6 {[%clk 1:22:02]} 9. h3 {[%clk 1:30:57]}  Bxf3 {[%clk 1:21:24]}
10. Qxf3 {[%clk 1:30:54]}  Qc7 {[%clk 1:21:12]} 11. Nf1 {[%clk 1:29:54]}  Rd8 {[%clk 1:08:17]} 12. Bg5 {[%clk 1:26:45]}  Nc5 {[%clk 1:03:46]}
13. Ng3 {[%clk 1:26:41]}  Qa5+ {[%clk 0:51:24]} 14. Kf1 {[%clk 1:24:39]}  Nxb3 {[%clk 0:50:16]} 15. Qxb3 {[%clk 1:21:16]}  Qb5+ {[%clk 0:49:27]}
16. Qxb5 {[%clk 1:21:23]}  cxb5 {[%clk 0:49:56]} 17. Ke2 {[%clk 1:21:44]}  h6 {[%clk 0:48:15]} 18. Be3 {[%clk 1:20:34]}  a6 {[%clk 0:46:16]}
19. Rhd1 {[%clk 1:20:28]}  Rc8 {[%clk 0:46:29]} 20. c3 {[%clk 1:20:49]}  Kf7 {[%clk 0:45:16]} 21. f3 {[%clk 1:20:45]}  Be7 {[%clk 0:42:21]}
22. Nf5 {[%clk 1:20:02]}  h5 {[%clk 0:30:05]} 23. Bg5 {[%clk 1:13:47]}  Rc7 {[%clk 0:22:22]} 24. Rd3 {[%clk 1:11:08]}  Rd8 {[%clk 0:15:34]}
25. Rxd8 {[%clk 1:10:38]}  Bxd8 {[%clk 0:16:00]} 26. Rd1 {[%clk 1:11:03]}  Be7 {[%clk 0:15:43]} 27. h4 {[%clk 1:11:10]}  Ng8 {[%clk 0:14:33]}
28. Rd5 {[%clk 1:09:40]}  Bxg5 {[%clk 0:12:44]} 29. hxg5 {[%clk 1:07:31]}  g6 {[%clk 0:13:04]} 30. Ne3 {[%clk 1:05:04]}  Ke6 {[%clk 0:08:05]}
31. Rd8 {[%clk 1:05:28]}  Rg7 {[%clk 0:08:25]} 32. Nd5 {[%clk 1:05:44]}  Ne7 {[%clk 0:08:05]} 33. Re8 {[%clk 1:03:33]} 1-0

[Event "2026 European Womens Championship"]
[Site "Batumi, GE"]
[Date "2026.06.02"]
[Round "8"]
[White "Giorgadze, Mariam Ere"]
[Black "Chighvaria, Ana"]
[Result "1-0"]
[Board "79"]
[TimeControl "5400+30"]
[WhiteFideId "13636839"]
[BlackFideId "13628666"]
[WhiteElo "1909"]
[BlackElo "1518"]
[WhiteClock "0:26:18"]
[BlackClock "0:45:12"]
[Variant "Standard"]

1. e4 {[%clk 1:30:57]}  c5 {[%clk 1:30:56]} 2. Nf3 {[%clk 1:31:24]}  Nc6 {[%clk 1:31:22]} 3. Bb5 {[%clk 1:31:51]}  g6 {[%clk 1:31:43]}
4. O-O {[%clk 1:32:17]}  Bg7 {[%clk 1:32:09]} 5. Re1 {[%clk 1:32:42]}  e6 {[%clk 1:30:29]} 6. Bxc6 {[%clk 1:28:57]}  dxc6 {[%clk 1:30:39]}
7. e5 {[%clk 1:28:58]}  Ne7 {[%clk 1:30:37]} 8. d3 {[%clk 1:28:24]}  O-O {[%clk 1:29:21]} 9. Bg5 {[%clk 1:26:47]}  Qc7 {[%clk 1:29:04]}
10. Qd2 {[%clk 1:21:29]}  Nf5 {[%clk 1:28:32]} 11. Qc3 {[%clk 1:04:33]}  b6 {[%clk 1:27:42]} 12. Nbd2 {[%clk 1:04:10]}  Ba6 {[%clk 1:26:35]}
13. Ne4 {[%clk 1:02:04]}  h6 {[%clk 1:23:16]} 14. Bf6 {[%clk 0:59:58]}  h5 {[%clk 1:21:47]} 15. Qd2 {[%clk 0:55:14]}  c4 {[%clk 1:19:51]}
16. Bxg7 {[%clk 0:46:57]}  Kxg7 {[%clk 1:19:33]} 17. Qg5 {[%clk 0:45:03]}  Qe7 {[%clk 1:17:21]} 18. Nf6 {[%clk 0:43:15]}  Rh8 {[%clk 1:16:09]}
19. dxc4 {[%clk 0:42:28]}  Bxc4 {[%clk 1:15:51]} 20. Rad1 {[%clk 0:38:35]}  Bd5 {[%clk 1:13:43]} 21. Nh4 {[%clk 0:35:17]}  Nxh4 {[%clk 1:08:42]}
22. Qxh4 {[%clk 0:35:38]}  Qc5 {[%clk 1:07:32]} 23. c3 {[%clk 0:31:20]}  Qc4 {[%clk 1:03:02]} 24. Ne4 {[%clk 0:26:37]}  Bxe4 {[%clk 0:50:13]}
25. Rxe4 {[%clk 0:27:01]}  Qxa2 {[%clk 0:49:31]} 26. Qf6+ {[%clk 0:27:10]}  Kg8 {[%clk 0:49:51]} 27. Red4 {[%clk 0:25:53]}  Rf8 {[%clk 0:48:35]}
28. Rd8 {[%clk 0:25:00]}  Kh7 {[%clk 0:47:40]} 29. R8d7 {[%clk 0:25:24]}  Qb3 {[%clk 0:44:28]} 30. Rxf7+ {[%clk 0:25:29]}  Rxf7 {[%clk 0:44:49]}
31. Qxf7+ {[%clk 0:25:54]}  Kh6 {[%clk 0:45:12]} 32. Qf4+ {[%clk 0:26:18]} 1-0

[Event "2026 European Womens Championship"]
[Site "Batumi, GE"]
[Date "2026.06.02"]
[Round "8"]
[White "Manukyan, Tamara"]
[Black "Saraci, Rinesa"]
[Result "1-0"]
[Board "81"]
[TimeControl "5400+30"]
[WhiteFideId "13321307"]
[BlackFideId "4701976"]
[WhiteElo "1707"]
[BlackElo "1754"]
[BlackTitle "WCM"]
[WhiteClock "0:13:47"]
[BlackClock "0:14:21"]
[Variant "Standard"]

1. e4 {[%clk 1:30:59]}  e5 {[%clk 1:30:52]} 2. Nc3 {[%clk 1:31:24]}  Nc6 {[%clk 1:31:14]} 3. g3 {[%clk 1:31:50]}  Bc5 {[%clk 1:31:31]}
4. Bg2 {[%clk 1:32:13]}  d6 {[%clk 1:31:29]} 5. Na4 {[%clk 1:32:38]}  Nf6 {[%clk 1:30:18]} 6. Nxc5 {[%clk 1:33:00]}  dxc5 {[%clk 1:30:44]}
7. Ne2 {[%clk 1:33:17]}  O-O {[%clk 1:27:42]} 8. O-O {[%clk 1:33:25]}  Bg4 {[%clk 1:26:11]} 9. h3 {[%clk 1:33:42]}  Be6 {[%clk 1:25:06]}
10. d3 {[%clk 1:34:06]}  Qd7 {[%clk 1:21:35]} 11. Kh2 {[%clk 1:34:30]}  Ne8 {[%clk 1:10:58]} 12. g4 {[%clk 1:27:26]}  f6 {[%clk 1:05:54]}
13. Ng3 {[%clk 1:26:53]}  g5 {[%clk 0:59:29]} 14. Nf5 {[%clk 1:22:09]}  Rd8 {[%clk 0:48:47]} 15. Rg1 {[%clk 1:18:18]}  c4 {[%clk 0:46:59]}
16. Bf1 {[%clk 1:18:44]}  cxd3 {[%clk 0:44:54]} 17. cxd3 {[%clk 1:15:01]}  Nb4 {[%clk 0:43:08]} 18. Rg3 {[%clk 1:13:26]}  Bc4 {[%clk 0:35:19]}
19. a3 {[%clk 0:58:10]}  Nxd3 {[%clk 0:33:59]} 20. Bxd3 {[%clk 0:58:15]}  Kh8 {[%clk 0:31:41]} 21. Bd2 {[%clk 0:57:44]}  Bxd3 {[%clk 0:31:32]}
22. Bb4 {[%clk 0:58:03]}  Rf7 {[%clk 0:27:06]} 23. Nh6 {[%clk 0:37:30]}  Rg7 {[%clk 0:26:55]} 24. Qb3 {[%clk 0:13:52]}  Bxe4 {[%clk 0:25:12]}
25. Bf8 {[%clk 0:14:03]}  Bd5 {[%clk 0:19:55]} 26. Bxg7+ {[%clk 0:13:31]}  Nxg7 {[%clk 0:19:44]} 27. Qe3 {[%clk 0:12:28]}  a6 {[%clk 0:16:29]}
28. Rd1 {[%clk 0:12:41]}  Qb5 {[%clk 0:16:03]} 29. Nf7+ {[%clk 0:12:59]}  Kg8 {[%clk 0:14:24]} 30. Nxd8 {[%clk 0:13:24]}  Qe8 {[%clk 0:14:21]}
31. Rxd5 {[%clk 0:13:47]} 1-0

[Event "2026 European Womens Championship"]
[Site "Batumi, GE"]
[Date "2026.06.03"]
[Round "9"]
[White "Roebers, Eline"]
[Black "Vega Gutierrez, Sabrina"]
[Result "1/2-1/2"]
[Board "1"]
[TimeControl "5400+30"]
[WhiteFideId "1058401"]
[BlackFideId "2219026"]
[WhiteElo "2389"]
[BlackElo "2375"]
[WhiteTitle "IM"]
[BlackTitle "IM"]
[WhiteClock "0:06:23"]
[BlackClock "0:04:36"]
[Variant "Standard"]

1. e4 {[%clk 1:30:57]}  c5 {[%clk 1:30:54]} 2. Nf3 {[%clk 1:31:24]}  g6 {[%clk 1:31:16]} 3. d4 {[%clk 1:31:50]}  cxd4 {[%clk 1:31:39]}
4. Nxd4 {[%clk 1:32:18]}  Nc6 {[%clk 1:31:58]} 5. c4 {[%clk 1:31:40]}  Bg7 {[%clk 1:32:17]} 6. Be3 {[%clk 1:31:20]}  Qb6 {[%clk 1:32:38]}
7. Nb3 {[%clk 1:28:46]}  Qd8 {[%clk 1:33:00]} 8. Qd2 {[%clk 1:27:25]}  Nf6 {[%clk 1:33:17]} 9. Nc3 {[%clk 1:27:22]}  d6 {[%clk 1:33:35]}
10. Be2 {[%clk 1:26:09]}  Ng4 {[%clk 1:33:42]} 11. Bg5 {[%clk 1:23:28]}  h6 {[%clk 1:32:08]} 12. Bh4 {[%clk 1:23:07]}  a5 {[%clk 1:29:44]}
13. f3 {[%clk 1:11:42]}  a4 {[%clk 1:20:04]} 14. Nc1 {[%clk 1:11:23]}  Nf6 {[%clk 1:05:13]} 15. Rb1 {[%clk 1:10:10]}  Be6 {[%clk 1:02:18]}
16. Nd5 {[%clk 1:05:27]}  Nd7 {[%clk 0:59:26]} 17. O-O {[%clk 1:00:33]}  O-O {[%clk 0:58:30]} 18. Bf2 {[%clk 0:51:24]}  Qa5 {[%clk 0:54:35]}
19. Rd1 {[%clk 0:48:11]}  Qxd2 {[%clk 0:52:59]} 20. Rxd2 {[%clk 0:48:38]}  Rfc8 {[%clk 0:53:00]} 21. Bf1 {[%clk 0:41:36]}  f5 {[%clk 0:45:40]}
22. exf5 {[%clk 0:38:06]}  Bxf5 {[%clk 0:44:12]} 23. Nd3 {[%clk 0:37:57]}  g5 {[%clk 0:36:09]} 24. Rbd1 {[%clk 0:30:03]}  Kf8 {[%clk 0:34:18]}
25. c5 {[%clk 0:26:45]}  Ra5 {[%clk 0:29:17]} 26. h4 {[%clk 0:18:38]}  Be6 {[%clk 0:28:29]} 27. Nc3 {[%clk 0:15:07]}  dxc5 {[%clk 0:17:05]}
28. hxg5 {[%clk 0:14:29]}  hxg5 {[%clk 0:17:33]} 29. Ne4 {[%clk 0:13:59]}  c4 {[%clk 0:17:25]} 30. Ndc5 {[%clk 0:13:13]}  Nxc5 {[%clk 0:17:50]}
31. Nxc5 {[%clk 0:13:25]}  Bf7 {[%clk 0:16:55]} 32. Nd7+ {[%clk 0:13:27]}  Ke8 {[%clk 0:14:09]} 33. Nb6 {[%clk 0:13:51]}  Rd8 {[%clk 0:14:19]}
34. Rxd8+ {[%clk 0:11:50]}  Nxd8 {[%clk 0:14:47]} 35. Nxc4 {[%clk 0:10:54]}  Rd5 {[%clk 0:15:15]} 36. Rc1 {[%clk 0:09:29]}  Nc6 {[%clk 0:10:04]}
37. b3 {[%clk 0:09:14]}  axb3 {[%clk 0:09:02]} 38. axb3 {[%clk 0:09:40]}  Bd4 {[%clk 0:02:56]} 39. Bxd4 {[%clk 0:09:12]}  Nxd4 {[%clk 0:02:40]}
40. b4 {[%clk 0:07:21]}  Be6 {[%clk 0:01:40]} 41. Ne3 {[%clk 0:23:38]}  Re5 {[%clk 0:26:02]} 42. Kf2 {[%clk 0:22:44]}  Nc6 {[%clk 0:20:12]}
43. Nc4 {[%clk 0:17:59]}  Bxc4 {[%clk 0:15:30]} 44. Rxc4 {[%clk 0:18:17]}  Kd7 {[%clk 0:15:55]} 45. Bd3 {[%clk 0:16:18]}  b5 {[%clk 0:05:34]}
46. Rg4 {[%clk 0:16:21]}  Kd6 {[%clk 0:03:38]} 47. Kg3 {[%clk 0:12:34]}  e6 {[%clk 0:03:13]} 48. Kf2 {[%clk 0:11:51]}  Rd5 {[%clk 0:02:54]}
49. Be4 {[%clk 0:10:46]}  Ne5 {[%clk 0:03:06]} 50. Rg3 {[%clk 0:10:08]}  Rd2+ {[%clk 0:03:34]} 51. Ke1 {[%clk 0:09:09]}  Rb2 {[%clk 0:04:01]}
52. Rxg5 {[%clk 0:09:00]}  Rxb4 {[%clk 0:04:29]} 53. Kf2 {[%clk 0:08:29]}  Rc4 {[%clk 0:04:45]} 54. Rg8 {[%clk 0:08:02]}  Nd7 {[%clk 0:04:44]}
55. Bd3 {[%clk 0:07:32]}  Rc5 {[%clk 0:05:12]} 56. Ke3 {[%clk 0:07:15]}  b4 {[%clk 0:05:40]} 57. Kd2 {[%clk 0:05:51]}  b3 {[%clk 0:04:42]}
58. Rg4 {[%clk 0:04:58]}  Rd5 {[%clk 0:04:59]} 59. Kc3 {[%clk 0:03:01]}  Rxd3+ {[%clk 0:01:15]} 60. Kxd3 {[%clk 0:03:27]}  Ne5+ {[%clk 0:01:36]}
61. Kc3 {[%clk 0:03:55]}  Nxg4 {[%clk 0:01:54]} 62. fxg4 {[%clk 0:04:16]}  Ke5 {[%clk 0:02:15]} 63. Kxb3 {[%clk 0:04:32]}  Kf4 {[%clk 0:02:38]}
64. Kc2 {[%clk 0:04:40]}  Kxg4 {[%clk 0:03:02]} 65. Kd3 {[%clk 0:04:57]}  Kf4 {[%clk 0:03:03]} 66. Kd4 {[%clk 0:04:55]}  e5+ {[%clk 0:03:26]}
67. Kd3 {[%clk 0:05:16]}  e4+ {[%clk 0:03:51]} 68. Kd4 {[%clk 0:05:27]}  e3 {[%clk 0:04:17]} 69. Kd3 {[%clk 0:05:55]}  Kg3 {[%clk 0:04:39]}
70. Kxe3 {[%clk 0:06:23]}  Kxg2 {[%clk 0:04:36]} 71. Ke4 {[%clk 0:06:23]} 1/2-1/2

[Event "2026 European Womens Championship"]
[Site "Batumi, GE"]
[Date "2026.06.03"]
[Round "9"]
[White "Fataliyeva, Ulviyya"]
[Black "Hnatyshyn, Anastasiia"]
[Result "0-1"]
[Board "2"]
[TimeControl "5400+30"]
[WhiteFideId "13403052"]
[BlackFideId "14198339"]
[WhiteElo "2450"]
[BlackElo "2207"]
[WhiteTitle "IM"]
[BlackTitle "WFM"]
[WhiteClock "0:31:25"]
[BlackClock "0:27:31"]
[Variant "Standard"]

1. e4 {[%clk 1:22:40]}  c5 {[%clk 1:30:54]} 2. Nc3 {[%clk 1:23:03]}  Nc6 {[%clk 1:31:20]} 3. Bb5 {[%clk 1:23:29]}  Nd4 {[%clk 1:31:45]}
4. Nf3 {[%clk 1:23:54]}  a6 {[%clk 1:31:58]} 5. Bd3 {[%clk 1:23:30]}  g6 {[%clk 1:32:09]} 6. Nxd4 {[%clk 1:22:00]}  cxd4 {[%clk 1:32:32]}
7. Ne2 {[%clk 1:22:24]}  Bg7 {[%clk 1:32:10]} 8. Bc4 {[%clk 1:22:04]}  b5 {[%clk 1:27:48]} 9. Bd5 {[%clk 1:18:02]}  Rb8 {[%clk 1:27:48]}
10. d3 {[%clk 1:18:24]}  Bb7 {[%clk 1:17:08]} 11. Bxb7 {[%clk 1:16:35]}  Rxb7 {[%clk 1:17:26]} 12. f4 {[%clk 1:14:10]}  d6 {[%clk 1:17:09]}
13. O-O {[%clk 1:12:49]}  Qb6 {[%clk 1:14:47]} 14. f5 {[%clk 0:57:54]}  Nf6 {[%clk 1:10:45]} 15. Nf4 {[%clk 0:56:12]}  Qc5 {[%clk 1:03:58]}
16. Bd2 {[%clk 0:52:51]}  O-O {[%clk 0:48:23]} 17. b4 {[%clk 0:45:27]}  Qc8 {[%clk 0:45:51]} 18. g4 {[%clk 0:44:36]}  Nd7 {[%clk 0:43:03]}
19. Rf3 {[%clk 0:32:42]}  Ne5 {[%clk 0:37:50]} 20. Rh3 {[%clk 0:32:51]}  e6 {[%clk 0:36:33]} 21. Be1 {[%clk 0:29:47]}  d5 {[%clk 0:28:35]}
22. Bh4 {[%clk 0:28:14]}  dxe4 {[%clk 0:28:49]} 23. f6 {[%clk 0:27:40]}  Bh8 {[%clk 0:29:02]} 24. dxe4 {[%clk 0:27:25]}  Rc7 {[%clk 0:24:51]}
25. Nd3 {[%clk 0:21:47]}  Nc4 {[%clk 0:21:47]} 26. Bg5 {[%clk 0:14:15]}  e5 {[%clk 0:17:59]} 27. Qf3 {[%clk 0:14:37]}  Rc6 {[%clk 0:16:36]}
28. Rh6 {[%clk 0:06:28]}  Ne3 {[%clk 0:13:30]} 29. Bxe3 {[%clk 0:01:47]}  Rxf6 {[%clk 0:13:27]} 30. Qh3 {[%clk 0:01:20]}  dxe3 {[%clk 0:13:38]}
31. Rxh7 {[%clk 0:01:35]}  Bg7 {[%clk 0:14:03]} 32. g5 {[%clk 0:01:33]}  Rf4 {[%clk 0:06:54]} 33. Nxf4 {[%clk 0:01:20]}  exf4 {[%clk 0:07:20]}
34. Rxg7+ {[%clk 0:00:36]}  Kxg7 {[%clk 0:07:45]} 35. Qf3 {[%clk 0:00:39]}  Qc7 {[%clk 0:06:21]} 36. Rf1 {[%clk 0:00:55]}  Rd8 {[%clk 0:06:41]}
37. h4 {[%clk 0:00:35]}  Rd2 {[%clk 0:06:31]} 38. c3 {[%clk 0:00:39]}  Qd6 {[%clk 0:04:54]} 39. h5 {[%clk 0:00:48]}  Qe5 {[%clk 0:02:26]}
40. h6+ {[%clk 0:01:16]}  Kg8 {[%clk 0:01:15]} 41. Qg4 {[%clk 0:00:58]}  e2 {[%clk 0:01:00]} 42. Re1 {[%clk 0:01:06]}  Qxe4 {[%clk 0:00:44]}
43. Kh2 {[%clk 0:01:26]}  Qe3 {[%clk 0:29:04]} 44. Kg2 {[%clk 0:31:25]}  Rd1 {[%clk 0:27:31]} 0-1

[Event "2026 European Womens Championship"]
[Site "Batumi, GE"]
[Date "2026.06.03"]
[Round "9"]
[White "Narva, Mai"]
[Black "Kiolbasa, Oliwia"]
[Result "1-0"]
[Board "3"]
[TimeControl "5400+30"]
[WhiteFideId "4500512"]
[BlackFideId "1154613"]
[WhiteElo "2426"]
[BlackElo "2397"]
[WhiteTitle "IM"]
[BlackTitle "IM"]
[WhiteClock "0:00:47"]
[BlackClock "0:00:50"]
[Variant "Standard"]

1. e4 {[%clk 1:30:08]}  e5 {[%clk 1:29:51]} 2. Nf3 {[%clk 1:30:28]}  Nc6 {[%clk 1:30:15]} 3. Bc4 {[%clk 1:30:44]}  Nf6 {[%clk 1:30:31]}
4. d3 {[%clk 1:31:01]}  Be7 {[%clk 1:30:41]} 5. O-O {[%clk 1:30:51]}  O-O {[%clk 1:31:01]} 6. Re1 {[%clk 1:30:35]}  d6 {[%clk 1:30:58]}
7. a4 {[%clk 1:30:24]}  Be6 {[%clk 1:30:37]} 8. Nc3 {[%clk 1:25:19]}  Nb4 {[%clk 1:28:35]} 9. Bxe6 {[%clk 1:16:42]}  fxe6 {[%clk 1:28:56]}
10. Ne2 {[%clk 1:15:12]}  c5 {[%clk 1:25:27]} 11. Ng3 {[%clk 1:13:59]}  Qd7 {[%clk 1:19:50]} 12. c3 {[%clk 1:11:45]}  Nc6 {[%clk 1:20:12]}
13. d4 {[%clk 1:10:03]}  exd4 {[%clk 0:56:55]} 14. cxd4 {[%clk 1:10:21]}  d5 {[%clk 0:55:09]} 15. Ne5 {[%clk 0:58:33]}  Qc7 {[%clk 0:52:59]}
16. exd5 {[%clk 0:56:02]}  Nxd4 {[%clk 0:45:31]} 17. dxe6 {[%clk 0:55:27]}  Rad8 {[%clk 0:45:38]} 18. Bd2 {[%clk 0:47:50]}  Nxe6 {[%clk 0:29:29]}
19. Qc2 {[%clk 0:40:55]}  Nd5 {[%clk 0:27:18]} 20. Qc4 {[%clk 0:32:26]}  Bf6 {[%clk 0:22:06]} 21. Ng4 {[%clk 0:31:09]}  Qf7 {[%clk 0:21:55]}
22. Nxf6+ {[%clk 0:18:22]}  Qxf6 {[%clk 0:22:07]} 23. Ne4 {[%clk 0:18:22]}  Qf5 {[%clk 0:20:34]} 24. a5 {[%clk 0:13:14]}  Kh8 {[%clk 0:18:46]}
25. Rad1 {[%clk 0:11:17]}  b6 {[%clk 0:12:39]} 26. f3 {[%clk 0:03:47]}  Nd4 {[%clk 0:03:38]} 27. Ng3 {[%clk 0:02:55]}  Qg6 {[%clk 0:01:48]}
28. Bc3 {[%clk 0:02:11]}  Nxc3 {[%clk 0:01:46]} 29. bxc3 {[%clk 0:02:25]}  Nc2 {[%clk 0:01:36]} 30. Rxd8 {[%clk 0:02:10]}  Rxd8 {[%clk 0:02:01]}
31. Re2 {[%clk 0:00:45]}  h6 {[%clk 0:00:33]} 32. Qa4 {[%clk 0:00:38]}  Rd1+ {[%clk 0:00:43]} 33. Kf2 {[%clk 0:00:40]}  Rc1 {[%clk 0:00:20]}
34. Qf4 {[%clk 0:00:47]}  Ra1 {[%clk 0:00:50]} 35. Qf8+ {[%clk 0:00:47]}  Kh7 {[%clk 0:00:50]} 36. Re8 {[%clk 0:00:47]}  Qd3 {[%clk 0:00:50]}
37. Qg8+ {[%clk 0:00:47]}  Kg6 {[%clk 0:00:50]} 38. Re6+ {[%clk 0:00:47]} 1-0

[Event "2026 European Womens Championship"]
[Site "Batumi, GE"]
[Date "2026.06.03"]
[Round "9"]
[White "Badelka, Olga"]
[Black "Ushenina, Anna"]
[Result "1-0"]
[Board "4"]
[TimeControl "5400+30"]
[WhiteFideId "13509926"]
[BlackFideId "14110911"]
[WhiteElo "2392"]
[BlackElo "2420"]
[WhiteTitle "IM"]
[BlackTitle "GM"]
[WhiteClock "0:10:09"]
[BlackClock "0:01:39"]
[Variant "Standard"]

1. d4 {[%clk 1:30:56]}  d5 {[%clk 1:30:22]} 2. Bf4 {[%clk 1:31:19]}  Nf6 {[%clk 1:29:49]} 3. e3 {[%clk 1:31:37]}  e6 {[%clk 1:29:38]}
4. Qf3 {[%clk 1:31:48]}  c5 {[%clk 1:28:54]} 5. Nc3 {[%clk 1:32:04]}  Qa5 {[%clk 1:28:01]} 6. g4 {[%clk 1:24:42]}  Ne4 {[%clk 0:48:59]}
7. Nge2 {[%clk 1:23:44]}  Bd7 {[%clk 0:38:30]} 8. O-O-O {[%clk 1:21:19]}  Bc6 {[%clk 0:38:27]} 9. Kb1 {[%clk 1:12:31]}  Nxc3+ {[%clk 0:36:18]}
10. Nxc3 {[%clk 1:12:57]}  Nd7 {[%clk 0:36:45]} 11. Qg3 {[%clk 1:11:23]}  Rc8 {[%clk 0:34:37]} 12. e4 {[%clk 0:49:05]}  Nf6 {[%clk 0:23:39]}
13. Be5 {[%clk 0:45:42]}  Nxe4 {[%clk 0:17:34]} 14. Nxe4 {[%clk 0:46:08]}  dxe4 {[%clk 0:18:02]} 15. Bc4 {[%clk 0:42:10]}  cxd4 {[%clk 0:09:07]}
16. Bxd4 {[%clk 0:42:29]}  Ba4 {[%clk 0:09:11]} 17. Bb3 {[%clk 0:27:33]}  Bxb3 {[%clk 0:06:06]} 18. Qxb3 {[%clk 0:27:34]}  b5 {[%clk 0:05:04]}
19. Rhe1 {[%clk 0:20:18]}  Be7 {[%clk 0:02:49]} 20. Bxg7 {[%clk 0:20:11]}  Rg8 {[%clk 0:03:17]} 21. Be5 {[%clk 0:20:21]}  Rxg4 {[%clk 0:02:36]}
22. Qh3 {[%clk 0:19:59]}  Rg6 {[%clk 0:02:38]} 23. Qxh7 {[%clk 0:18:14]}  Rd8 {[%clk 0:02:28]} 24. a3 {[%clk 0:11:39]}  Bf6 {[%clk 0:01:05]}
25. Bxf6 {[%clk 0:09:02]}  Rxf6 {[%clk 0:00:55]} 26. Qxe4 {[%clk 0:09:01]}  Rxd1+ {[%clk 0:01:00]} 27. Rxd1 {[%clk 0:09:28]}  Rxf2 {[%clk 0:01:26]}
28. Qc6+ {[%clk 0:09:43]}  Kf8 {[%clk 0:01:39]} 29. Qc5+ {[%clk 0:10:09]} 1-0